fUST/lending_fUST_20250321
["ID","MTS","AMOUNT","RATE_DAILY","PERIOD"]
[356495515,1742543445740,-156.70429295,0.00032876,21]
[356495516,1742543445749,-686.01,0.00032876,21]
[356495517,1742543445759,-500.0,0.00032876,21]
[356495518,1742543445769,-1144.9,0.00032876,21]
[356495519,1742543445778,-500.0,0.00032876,21]
[356495520,1742543445789,-500.0,0.00032876,21]
[356495521,1742543445798,-607.82,0.00032876,21]
[356495522,1742543445808,-508.94,0.00032876,21]
[356495523,1742543445818,-1139.81,0.00032876,21]
[356495524,1742543445827,-500.0,0.00032876,21]
[356495525,1742543445837,-1907.45,0.00032876,21]
[356495526,1742543445846,-1241.33,0.00032876,21]
[356495527,1742543445856,-1699.09,0.00032876,21]
[356495528,1742543445866,-500.0,0.00032876,21]
[356495529,1742543445875,-1191.91,0.00032876,21]
[356495530,1742543445885,-500.0,0.00032876,21]
[356495531,1742543445895,-500.0,0.00032876,21]
[356495532,1742543445904,-3211.17,0.00032876,21]
[356495533,1742543445913,-1001.49,0.00032876,21]
[356495534,1742543445923,-500.0,0.00032876,21]
[356495535,1742543445933,-500.0,0.00032876,21]
[356495536,1742543445943,-1774.57,0.00032876,21]
[356495537,1742543445954,-500.0,0.00032876,21]
[356495538,1742543445964,-500.0,0.00032876,21]
[356495539,1742543445975,-500.0,0.00032876,21]
[356495540,1742543445984,-1392.27,0.00032876,21]
[356495541,1742543445994,-749.13,0.00032876,21]
[356495542,1742543446004,-546.82,0.00032876,21]
[356495543,1742543446014,-1528.49,0.00032876,21]
[356495544,1742543446023,-500.0,0.00032876,21]
[356495545,1742543446033,-730.7,0.00032876,21]
[356495546,1742543446043,-1431.83,0.00032876,21]
[356495547,1742543446052,-500.0,0.00032876,7]
[356495548,1742543446062,-500.0,0.00032876,21]
[356495551,1742543446071,-1018.27,0.00032876,21]
[356495552,1742543446081,-500.0,0.00032876,21]
[356495553,1742543446091,-1491.23,0.00032876,21]
[356495554,1742543446101,-500.0,0.00032876,120]
[356495555,1742543446110,-500.0,0.00032876,21]
[356495556,1742543446119,-500.0,0.00032876,21]
[356495557,1742543446129,-500.0,0.00032876,21]
[356495558,1742543446139,-648.41,0.00032876,21]
[356495559,1742543446148,-535.36,0.00032876,21]
[356495560,1742543446158,-1754.75,0.00032876,21]
[356495561,1742543446168,-643.87,0.00032876,21]
[356495562,1742543446177,-515.57007635,0.00032876,21]
[356495563,1742543446187,-500.0,0.00032876,21]
[356495564,1742543446198,-500.0,0.00032876,21]
[356495565,1742543446207,-833.35,0.00032876,21]
[356495566,1742543446217,-516.48,0.00032876,21]
[356495567,1742543446227,-2067.33,0.00032876,21]
[356495568,1742543446236,-1622.35,0.00032876,21]
[356495569,1742543446245,-500.0,0.00032876,21]
[356495571,1742543446255,-1098.32,0.00032876,21]
[356495572,1742543446265,-549.49268584,0.00032876,21]
[356495573,1742543446274,-2390.10371303,0.00032876,21]
[356495574,1742543446293,-690.31628697,0.00032876,21]
[356495575,1742543446303,-394.75720748,0.00032876,21]
[356495576,1742543446314,-105.24279252,0.00032876,21]
[356495577,1742543446323,-881.43878378,0.00032876,21]
[356495580,1742543446693,-400.0,0.00028913,2]
[356495581,1742543446704,-400.0,0.00031913,2]
[356495582,1742543446713,-96.57334352,0.00032876,21]
[356495583,1742543446759,-753.5,0.00032876,21]
[356495584,1742543446772,-98.0678727,0.00032876,21]
[356495585,1742543446781,-875.56,0.00032876,21]
[356495586,1742543446791,-638.14,0.00032876,21]
[356495587,1742543446801,-500.0,0.00032876,21]
[356495588,1742543446810,-3357.05883343,0.00032876,21]
[356495592,1742544335353,300.0,0.000175,3]
[356495593,1742544470077,165.564864,0.00010959,2]
[356495608,1742544625552,4000.0,0.000173,3]
[356495635,1742544631909,-1505.01560162,0.00017814,2]
[356495637,1742544631919,-1499.99127202,0.00017894,2]
[356495639,1742544631929,-300.0,0.00018176,2]
[356495641,1742544631940,-500.0,0.00018178,2]
[356495644,1742544631950,-500.0,0.00018178,2]
[356495646,1742544631960,-500.0,0.00018178,2]
[356495647,1742544631974,-500.0,0.00018178,2]
[356495648,1742544631984,-500.0,0.00018178,2]
[356495649,1742544631994,-500.0,0.00018178,2]
[356495650,1742544632005,-500.0,0.00018178,2]
[356495651,1742544632015,-500.0,0.00018178,2]
[356495652,1742544632025,-500.0,0.00018178,2]
[356495653,1742544632035,-387.88915118,0.000233,3]
[356495654,1742544632046,-387.88915108,0.000233,3]
[356495655,1742544632056,-387.88915108,0.000233,3]
[356495656,1742544632066,-387.88915108,0.000233,3]
[356495657,1742544632076,-387.88915108,0.000233,3]
[356495658,1742544632085,-387.88915108,0.000233,3]
[356495659,1742544632095,-387.88915108,0.000233,3]
[356495660,1742544632104,-387.88915108,0.00023762,3]
[356495661,1742544632114,-387.88915108,0.00024314,3]
[356495662,1742544632124,-387.88915108,0.00024866,4]
[356495663,1742544632134,-257.5683169,0.00024902,2]
[356495664,1742544632144,-192.0,0.00025,2]
[356495665,1742544632153,-387.88915108,0.00025417,4]
[356495666,1742544632163,-2554.19074078,0.00025658,30]
[356495678,1742544637618,-666.68264225,0.00025658,30]
[356495679,1742544637628,-337.90960781,0.00025855,2]
[356495693,1742544640026,-377.1451195,0.00025855,2]
[356495694,1742544640080,-1485.19907962,0.00025855,2]
[356495728,1742545510710,165.564864,0.00010959,2]
[356495729,1742545512611,10000.0,0.00012001,2]
[356495731,1742545580955,200.0,0.00012001,2]
[356495736,1742545706430,1712.07,0.000175,5]
[356495767,1742545835326,-300.0,0.00017506,2]
[356495768,1742545835338,-1000.0,0.00017507,3]
[356495769,1742545835351,-1000.0,0.00017507,3]
[356495770,1742545835361,-1000.0,0.00017507,3]
[356495771,1742545835372,-1000.0,0.00017507,3]
[356495772,1742545835383,-1000.0,0.00017507,3]
[356495773,1742545835395,-1000.0,0.00017507,3]
[356495774,1742545835407,-1000.0,0.00017507,3]
[356495775,1742545835420,-1000.0,0.00017507,3]
[356495776,1742545835432,-5338.08967745,0.00017614,2]
[356495777,1742545835444,-500.0,0.00018178,2]
[356495778,1742545835455,-500.0,0.00018178,2]
[356495779,1742545835467,-500.0,0.00018178,2]
[356495780,1742545835479,-500.0,0.00018178,2]
[356495781,1742545835491,-500.0,0.00018178,2]
[356495782,1742545835503,-3589.76684511,0.00018178,2]
[356495783,1742545835513,-265.21464783,0.00021,2]
[356495784,1742545835523,-5663.27524659,0.00022,2]
[356495785,1742545835533,-346.83683196,0.00022,2]
[356495786,1742545835544,-1000.0,0.00022,2]
[356495787,1742545835554,-289.82891186,0.000221,2]
[356495788,1742545835564,-245.59558581,0.00023,2]
[356495789,1742545835575,-207.35878646,0.00023098,2]
[356495790,1742545835588,-578.8722724,0.00023098,2]
[356495791,1742545835602,-500.0,0.00023098,2]
[356495792,1742545835614,-446.63690361,0.00023098,2]
[356495811,1742545843050,-53.36309639,0.00023098,2]
[356495812,1742545843061,-500.0,0.00023098,2]
[356495813,1742545843071,-409.80073261,0.00023098,2]
[356495814,1742545843082,-500.0,0.00023098,2]
[356495815,1742545843093,-500.0,0.00023098,2]
[356495816,1742545843103,-500.0,0.00023098,2]
[356495817,1742545843114,-500.0,0.00023098,2]
[356495818,1742545843124,-500.0,0.00023098,2]
[356495819,1742545843135,-500.0,0.00023098,2]
[356495820,1742545843146,-500.0,0.00023098,2]
[356495821,1742545843156,-500.0,0.00023098,2]
[356495822,1742545843165,-48.3189589,0.00023098,2]
[356495838,1742545845911,-551.59858755,0.00023098,2]
[356495839,1742545845921,-36.40376245,0.00023098,2]
[356495840,1742545845932,-463.59623755,0.00023098,2]
[356495841,1742545845941,-500.0,0.00023098,2]
[356495842,1742545845951,-2056.53795619,0.00023099,2]
[356495843,1742545845961,-834.1406796,0.000232,3]
[356495844,1742545845970,-7643.99440306,0.000232,3]
[356495845,1742545845981,-4784.06024773,0.000232,3]
[356495846,1742545845991,-245.66312923,0.000232,3]
[356495847,1742545846000,-245.66312901,0.000232,3]
[356495848,1742545846009,-245.66312901,0.000232,3]
[356495849,1742545846019,-245.66312901,0.000232,3]
[356495850,1742545846028,-245.66312901,0.000232,3]
[356495851,1742545846037,-245.66312901,0.000232,3]
[356495852,1742545846046,-245.66312901,0.000232,3]
[356495853,1742545846057,-245.66312901,0.000232,3]
[356495854,1742545846066,-245.66312901,0.000232,3]
[356495855,1742545846076,-160.0,0.000232,3]
[356495856,1742545846085,-245.66312901,0.00023486,3]
[356495857,1742545846094,-600.0,0.00023753,2]
[356495858,1742545846104,-2999.30846195,0.00023767,2]
[356495981,1742547038075,-500.0,0.00018178,2]
[356495982,1742547038098,-500.0,0.00018178,2]
[356495983,1742547038120,-1215.9460302,0.00023667,2]
[356495984,1742547038129,-1667.00781807,0.00024,2]
[356495985,1742547038139,-200.0,0.00025,120]
[356495986,1742547038149,-158.0,0.00025,2]
[356495987,1742547038158,-191.0,0.00025,2]
[356495988,1742547038168,-181.134458,0.00025137,2]
[356495989,1742547038177,-181.134458,0.00025137,120]
[356495991,1742547038187,-257.568315,0.00025138,2]
[356495993,1742547038196,-300.0,0.00025278,2]
[356495994,1742547038205,-5069.08273966,0.00025279,3]
[356495995,1742547038625,-600.0,0.00025361,2]
[356495996,1742547038645,-10810.233519,0.00025376,2]
[356495997,1742547038663,-622.2,0.00025416,2]
[356495998,1742547038681,-645.2214,0.00025471,2]
[356495999,1742547038695,-1141.29791891,0.00025526,2]
[356496000,1742547038705,-500.0,0.00025855,2]
[356496001,1742547038714,-158.0,0.0002589,2]
[356496002,1742547038723,-191.0,0.0002589,2]
[356496003,1742547038732,-284.32152331,0.000259,4]
[356496004,1742547038742,-284.32152304,0.00026245,4]
[356496005,1742547038751,-284.32152304,0.0002659,4]
[356496006,1742547038760,-400.000001,0.00026788,2]
[356496007,1742547038769,-357.76490285,0.00026848,2]
[356496008,1742547038778,-500.0,0.00026848,2]
[356496009,1742547038787,-233.32417183,0.00026848,2]
[356496010,1742547038796,-284.32152304,0.00026934,4]
[356496011,1742547038805,-155.199794,0.00027021,3]
[356496012,1742547038815,-1799.47071171,0.00027147,2]
[356496013,1742547038823,-3000.0,0.00027197,2]
[356496014,1742547038832,-2325.6711086,0.00027197,2]
[356496015,1742547038841,-2325.67110859,0.00027222,2]
[356496016,1742547038850,-2325.67110859,0.00027247,2]
[356496017,1742547038859,-2325.67110859,0.00027272,2]
[356496018,1742547038868,-260.1,0.00027277,3]
[356496019,1742547038878,-104.34136748,0.00027277,3]
[356496020,1742547038890,-675.97863252,0.00027277,3]
[356496021,1742547038899,-284.32152304,0.00027279,4]
[356496022,1742547038908,-494.47632248,0.00027286,2]
[356496023,1742547038917,-1000.60474011,0.00027287,2]
[356496052,1742547062003,-200.0,0.00018078,2]
[356496058,1742547437527,-301.40937791,0.00018178,2]
[356496059,1742547610657,-177.38494749,0.00017996,2]
[356496060,1742547679892,175.6684148,0.00010959,2]
[356496094,1742548232358,-321.58244345,0.00019177,2]
[356496095,1742548232368,-272.07364077,0.00019371,2]
[356496096,1742548232379,-1185.418673,0.000247,2]
[356496097,1742548232389,-765.56,0.00025,5]
[356496098,1742548232399,-191.0,0.00025,2]
[356496099,1742548232409,-1000.0,0.000252,2]
[356496100,1742548232420,-631.08230919,0.00025445,2]
[356496101,1742548232430,-300.0,0.00025459,2]
[356496102,1742548232441,-24900.0,0.0002546,2]
[356496103,1742548232452,-914.9401835,0.000257,2]
[356496104,1742548232465,-85.0598165,0.000257,2]
[356496105,1742548232475,-191.0,0.0002589,2]
[356496106,1742548232486,-3770.57908785,0.000259,2]
[356496107,1742548232499,-8621.3286617,0.000259,2]
[356496108,1742548232510,-601.93264318,0.000259,4]
[356496109,1742548232521,-613.60997402,0.00026068,2]
[356496111,1742548232532,-250.9999989,0.00026069,2]
[356496113,1742548232542,-155.633337,0.00026069,14]
[356496115,1742548232553,-162.31463,0.00026163,2]
[356496117,1742548232563,-162.31463,0.00026163,41]
[356496119,1742548232574,-162.31463,0.00026163,80]
[356496122,1742548232585,-162.31463,0.00026163,119]
[356496124,1742548232595,-1000.0,0.000262,2]
[356496126,1742548232606,-601.93264312,0.00026245,4]
[356496127,1742548232617,-212.1312739,0.00026468,4]
[356496128,1742548232627,-249.0,0.00026468,2]
[356496129,1742548232637,-601.93264312,0.0002659,4]
[356496130,1742548232647,-1000.0,0.000267,2]
[356496131,1742548232658,-601.93264312,0.00026934,4]
[356496132,1742548232669,-150.0,0.00027076,2]
[356496133,1742548232680,-465.13422175,0.00027087,2]
[356496134,1742548232690,-465.13422171,0.0002709,2]
[356496135,1742548232700,-465.13422171,0.00027094,2]
[356496136,1742548232709,-465.13422171,0.00027097,2]
[356496137,1742548232719,-1161.59487506,0.000271,2]
[356496138,1742548232729,-465.13422171,0.000271,2]
[356496139,1742548232738,-155.633337,0.0002716,3]
[356496140,1742548232748,-1234.946661,0.00027164,2]
[356496141,1742548232758,-1234.946661,0.00027164,2]
[356496142,1742548232767,-346.79,0.0002717,3]
[356496143,1742548232777,-173.4,0.0002717,3]
[356496144,1742548232788,-520.2,0.0002717,3]
[356496145,1742548232797,-156.587,0.00027174,2]
[356496146,1742548232807,-500.0,0.00027179,2]
[356496147,1742548232816,-180.3664177,0.00027179,2]
[356496148,1742548232827,-151.0,0.0002718,7]
[356496149,1742548232836,-151.0,0.0002718,7]
[356496150,1742548232845,-713.328326,0.0002718,7]
[356496151,1742548232854,-713.328326,0.0002718,7]
[356496152,1742548232863,-713.328326,0.0002718,7]
[356496153,1742548232872,-713.328326,0.0002718,7]
[356496154,1742548232882,-1234.946661,0.0002718,2]
[356496155,1742548232891,-1234.946661,0.0002718,2]
[356496156,1742548232900,-1234.946661,0.0002718,2]
[356496157,1742548232909,-134.53919668,0.0002718,2]
[356496160,1742548238220,-400.0,0.00027076,2]
[356496161,1742548238230,-1100.40746432,0.0002718,2]
[356496162,1742548238239,-127037.387075,0.0002718,2]
[356496163,1742548238248,-3000.0,0.00027187,2]
[356496165,1742548238257,-151.0,0.0002719,7]
[356496166,1742548238267,-151.0,0.0002719,7]
[356496167,1742548238276,-199.409378,0.0002719,7]
[356496168,1742548238286,-713.328326,0.0002719,7]
[356496169,1742548238295,-713.328326,0.0002719,7]
[356496171,1742548238305,-713.328326,0.0002719,7]
[356496172,1742548238315,-713.328326,0.0002719,7]
[356496173,1742548238324,-713.328326,0.0002719,7]
[356496174,1742548238334,-713.328326,0.0002719,7]
[356496175,1742548238344,-1234.946661,0.0002719,2]
[356496176,1742548238354,-1234.946661,0.0002719,2]
[356496177,1742548238364,-1234.946661,0.0002719,2]
[356496178,1742548238373,-1234.946661,0.0002719,2]
[356496179,1742548238383,-1000.0,0.0002719,14]
[356496180,1742548238393,-1000.0,0.0002719,14]
[356496181,1742548238402,-1000.0,0.0002719,14]
[356496182,1742548238412,-1000.0,0.0002719,14]
[356496183,1742548238422,-1000.0,0.0002719,14]
[356496184,1742548238431,-1000.0,0.0002719,14]
[356496185,1742548238440,-1000.0,0.0002719,14]
[356496186,1742548238450,-1000.0,0.0002719,14]
[356496187,1742548238459,-1000.0,0.0002719,14]
[356496188,1742548238469,-1000.0,0.0002719,14]
[356496189,1742548238478,-1000.0,0.0002719,14]
[356496190,1742548238488,-1000.0,0.0002719,14]
[356496191,1742548238497,-1000.0,0.0002719,14]
[356496192,1742548238508,-1000.0,0.0002719,14]
[356496193,1742548238517,-1000.0,0.0002719,14]
[356496194,1742548238527,-1000.0,0.0002719,14]
[356496195,1742548238537,-1000.0,0.0002719,14]
[356496196,1742548238547,-222000.0,0.0002719,2]
[356496197,1742548238556,-20000.000001,0.000272,7]
[356496198,1742548238566,-1000.0,0.000272,2]
[356496199,1742548238575,-150.111867,0.000272,2]
[356496200,1742548238585,-713.328326,0.000272,7]
[356496201,1742548238594,-713.328326,0.000272,7]
[356496202,1742548238604,-713.328326,0.000272,7]
[356496203,1742548238613,-713.328326,0.000272,7]
[356496204,1742548238622,-1234.946661,0.000272,2]
[356496205,1742548238631,-1234.946661,0.000272,2]
[356496206,1742548238640,-1234.946661,0.000272,2]
[356496207,1742548238649,-1234.946661,0.000272,2]
[356496208,1742548238658,-834.1406796,0.000272,7]
[356496209,1742548238667,-500.0,0.00027279,2]
[356496210,1742548238677,-601.93264312,0.00027279,4]
[356496211,1742548238686,-501.0,0.00027287,2]
[356496212,1742548238695,-160.0,0.0002729,2]
[356496213,1742548238704,-713.328326,0.0002729,7]
[356496214,1742548238713,-713.328326,0.0002729,7]
[356496215,1742548238722,-1234.946661,0.0002729,2]
[356496216,1742548238731,-1234.946661,0.0002729,2]
[356496217,1742548238740,-1234.946661,0.00027291,2]
[356496218,1742548238749,-1234.946661,0.00027291,2]
[356496219,1742548238758,-25407.4774149,0.00027291,2]
[356496220,1742548238768,-214.08328978,0.00027298,2]
[356496221,1742548238778,-834.1406796,0.000273,2]
[356496222,1742548238787,-418.02116171,0.000273,2]
[356496223,1742548238796,-160.0,0.000273,2]
[356496224,1742548238806,-713.328326,0.00027377,7]
[356496225,1742548238815,-713.328326,0.00027377,7]
[356496226,1742548238824,-713.328326,0.00027377,7]
[356496227,1742548238833,-713.328336,0.00027377,7]
[356496228,1742548238852,-1234.946661,0.00027377,2]
[356496229,1742548238863,-1234.946669,0.00027377,2]
[356496230,1742548238872,-50814.9548298,0.00027377,2]
[356496231,1742548238882,-50814.9548298,0.00027387,2]
[356496232,1742548238891,-500.0,0.00027397,2]
[356496233,1742548238900,-500.0,0.00027397,2]
[356496234,1742548238910,-500.0,0.00027397,2]
[356496235,1742548238920,-158.85809938,0.00027397,2]
[356496236,1742548238929,-500.0,0.00027397,2]
[356496237,1742548238939,-500.0,0.00027397,2]
[356496238,1742548238948,-500.0,0.00027397,2]
[356496239,1742548238958,-500.0,0.00027397,2]
[356496240,1742548238970,-500.0,0.00027397,2]
[356496241,1742548238980,-500.0,0.00027397,2]
[356496242,1742548238990,-5905.85,0.00027397,3]
[356496243,1742548238999,-5905.85,0.00027397,3]
[356496244,1742548239009,-5905.85,0.00027397,3]
[356496245,1742548239021,-5905.85,0.00027397,3]
[356496246,1742548239030,-5905.85,0.00027397,3]
[356496247,1742548239041,-5905.85,0.00027397,3]
[356496248,1742548239051,-5905.85,0.00027397,3]
[356496249,1742548239061,-5905.85,0.00027397,3]
[356496250,1742548239071,-5905.85,0.00027397,3]
[356496251,1742548239080,-5905.85,0.00027397,3]
[356496252,1742548239090,-5905.85,0.00027397,3]
[356496253,1742548239100,-5905.85,0.00027397,3]
[356496254,1742548239110,-5905.85,0.00027397,3]
[356496255,1742548239119,-5905.85,0.00027397,3]
[356496256,1742548239129,-5905.85,0.00027397,3]
[356496257,1742548239140,-5905.85,0.00027397,3]
[356496258,1742548239149,-5905.85,0.00027397,3]
[356496259,1742548239159,-5905.85,0.00027397,3]
[356496260,1742548239169,-5905.85,0.00027397,3]
[356496261,1742548239178,-5905.85,0.00027397,3]
[356496262,1742548239188,-5905.85,0.00027397,3]
[356496263,1742548239197,-5905.85,0.00027397,3]
[356496264,1742548239207,-5905.85,0.00027397,3]
[356496265,1742548239216,-5905.98434544,0.00027397,3]
[356496266,1742548239226,-160.0,0.00027397,3]
[356496267,1742548239235,-834.1406796,0.00027397,3]
[356496268,1742548239245,-418.02116171,0.00027397,3]
[356496269,1742548239254,-196.7560422,0.00027397,120]
[356496270,1742548239264,-500.0,0.00027397,5]
[356496271,1742548239273,-500.0,0.00027463,5]
[356496272,1742548239283,-500.0,0.00027463,5]
[356496273,1742548239293,-500.0,0.00027463,5]
[356496274,1742548239303,-317.86037617,0.00027544,5]
[356496275,1742548239312,-420.0,0.00027568,2]
[356496276,1742548239322,-501.30984633,0.00027569,2]
[356496277,1742548239332,-500.0,0.00027569,5]
[356496278,1742548239342,-163.22263284,0.00027569,5]
[356496279,1742548239351,-601.93264312,0.00027624,4]
[356496280,1742548239361,-500.0,0.00027757,5]
[356496281,1742548239371,-500.0,0.00027757,5]
[356496282,1742548239380,-500.0,0.00027813,5]
[356496283,1742548239391,-500.0,0.00027813,5]
[356496284,1742548239401,-500.0,0.00027813,5]
[356496285,1742548239411,-253.76709585,0.00027813,5]
[356496286,1742548239422,-184.66624263,0.00027813,2]
[356496287,1742548239432,-161.05125283,0.00027813,5]
[356496288,1742548239443,-502.34721961,0.00027813,5]
[356496289,1742548239453,-644.37123205,0.00027813,5]
[356496290,1742548239468,-338.62636598,0.00027813,5]
[356496291,1742548239478,-155.633337,0.00027893,2]
[356496292,1742548239488,-419.50275421,0.00027895,2]
[356496293,1742548239499,-601.93264312,0.00027969,4]
[356496294,1742548239510,-45510.0,0.00028,120]
[356496295,1742548239520,-500.0,0.00028,5]
[356496296,1742548239530,-155.633337,0.00028101,3]
[356496297,1742548239541,-601.93264312,0.00028314,5]
[356496298,1742548239552,-155.633337,0.00028338,14]
[356496299,1742548239562,-155.633337,0.00028387,2]
[356496300,1742548239572,-155.633337,0.00028394,20]
[356496301,1742548239583,-693.58,0.0002854,3]
[356496302,1742548239594,-346.8,0.0002854,3]
[356496303,1742548239605,-601.93264312,0.00028659,5]
[356496304,1742548239616,-1000.0,0.00028767,5]
[356496305,1742548239627,-455.0,0.00028849,2]
[356496306,1742548239637,-455.0,0.00028849,2]
[356496307,1742548239647,-455.0,0.00028849,2]
[356496308,1742548239657,-455.0,0.00028849,2]
[356496309,1742548239668,-455.0,0.00028849,2]
[356496310,1742548239678,-455.0,0.00028849,2]
[356496311,1742548239690,-455.0,0.00028849,2]
[356496312,1742548239700,-455.0,0.00028849,2]
[356496313,1742548239710,-455.0,0.00028849,2]
[356496314,1742548239720,-455.0,0.00028849,2]
[356496315,1742548239730,-455.0,0.00028849,2]
[356496316,1742548239741,-455.0,0.00028849,2]
[356496317,1742548239751,-455.0,0.00028849,2]
[356496318,1742548239761,-455.0,0.00028849,2]
[356496319,1742548239772,-307.0,0.00028849,2]
[356496320,1742548239782,-307.0,0.00028849,2]
[356496321,1742548239793,-307.0,0.00028849,2]
[356496322,1742548239804,-307.0,0.00028849,2]
[356496323,1742548239814,-307.0,0.00028849,2]
[356496324,1742548239824,-307.0,0.00028849,2]
[356496325,1742548239833,-307.0,0.00028849,2]
[356496326,1742548239843,-307.0,0.00028849,2]
[356496327,1742548239853,-307.0,0.00028849,2]
[356496328,1742548239863,-307.0,0.00028849,2]
[356496329,1742548239872,-307.0,0.00028849,2]
[356496330,1742548239882,-307.0,0.00028849,2]
[356496331,1742548239891,-307.0,0.00028849,2]
[356496332,1742548239902,-307.0,0.00028849,2]
[356496333,1742548239911,-155.633337,0.0002888,2]
[356496334,1742548239922,-376.234,0.00029,21]
[356496335,1742548239932,-601.93264312,0.00029003,5]
[356496336,1742548239941,-155.633337,0.00029042,3]
[356496337,1742548239951,-171.526461,0.00029042,3]
[356496338,1742548239960,-500.0,0.0002914,5]
[356496339,1742548239972,-155.633337,0.00029141,20]
[356496340,1742548239983,-500.0,0.00029177,5]
[356496341,1742548239992,-601.93264312,0.00029348,5]
[356496342,1742548240255,-555.51168725,0.0002937,5]
[356496343,1742548240265,-155.633337,0.00029374,2]
[356496344,1742548240275,-171.526461,0.00029374,2]
[356496345,1742548240284,-500.0,0.000294,5]
[356496346,1742548240293,-500.0,0.000294,5]
[356496347,1742548240303,-500.0,0.000294,5]
[356496348,1742548240312,-500.0,0.000294,5]
[356496349,1742548240322,-500.0,0.000294,5]
[356496350,1742548240332,-601.93264312,0.00029693,5]
[356496351,1742548240341,-150.0,0.00029851,2]
[356496352,1742548240350,-155.633337,0.00029888,20]
[356496353,1742548240360,-171.526461,0.00029888,20]
[356496354,1742548240369,-463.5731,0.0003,120]
[356496355,1742548240378,-21047.0,0.0003,120]
[356496356,1742548240388,-25639.10896426,0.0003,2]
[356496357,1742548240398,-500.0,0.0003,7]
[356496358,1742548240407,-500.0,0.0003,3]
[356496359,1742548240416,-500.0,0.0003,3]
[356496360,1742548240425,-500.0,0.0003,5]
[356496361,1742548240435,-500.0,0.0003,4]
[356496362,1742548240445,-500.0,0.0003,4]
[356496363,1742548240455,-500.0,0.0003,5]
[356496364,1742548240465,-500.0,0.0003,2]
[356496365,1742548240475,-500.0,0.0003,4]
[356496366,1742548240485,-601.93264312,0.00030038,5]
[356496367,1742548240495,-400.0,0.00030076,2]
[356496368,1742548240505,-1500.0,0.00030137,5]
[356496369,1742548240515,-601.93264312,0.00030383,5]
[356496370,1742548240525,-155.633337,0.00030607,14]
[356496371,1742548240535,-601.93264312,0.00030728,5]
[356496372,1742548240544,-2762.80510634,0.00031,60]
[356496373,1742548240555,-44210.11304752,0.00031,15]
[356496374,1742548240578,-1000.0,0.0002719,14]
[356496375,1742548240591,-3571.66483034,0.00031,15]
[356496376,1742548241134,-1000.0,0.0002719,14]
[356496377,1742548241145,-1000.0,0.0002719,14]
[356496378,1742548241156,-1000.0,0.0002719,14]
[356496379,1742548241166,-1000.0,0.0002719,14]
[356496380,1742548241176,-1000.0,0.0002719,14]
[356496381,1742548241186,-1000.0,0.0002719,14]
[356496382,1742548241196,-147241.24626581,0.00031,15]
[356496391,1742548243362,-1000.0,0.0002719,14]
[356496392,1742548243372,-1000.0,0.0002719,14]
[356496393,1742548243382,-1000.0,0.0002719,14]
[356496394,1742548243392,-1000.0,0.0002719,14]
[356496395,1742548243403,-1000.0,0.0002719,14]
[356496396,1742548243412,-1000.0,0.0002719,14]
[356496397,1742548243422,-1000.0,0.0002719,14]
[356496398,1742548243432,-1075.77,0.00031,15]
[356496399,1742548243471,-4589.91032714,0.00031,15]
[356496403,1742548246230,-420.04,0.0002719,14]
[356496405,1742548383894,-151.0,0.00018176,2]
[356496406,1742548504124,-388.46369387,0.00016022,2]
[356496407,1742548528604,-168.26,0.00016022,2]
[356496409,1742548716751,886.90291383,0.000175,3]